[Event "Polish Youth G16 Championship 2023"]
[Site "Jastrzebia Gora"]
[Date "2023.03.17"]
[Round "7.21"]
[White "Lach, Alicja"]
[Black "Gajec, Roza"]
[Result "1-0"]
[ECO "B24"]
[WhiteElo "1231"]
[BlackElo "1341"]
[Annotator "NA RC COMBH"]
[PlyCount "84"]
[EventDate "2023.03.11"]
[EventType "swiss"]
[EventCountry "POL"]
[SourceTitle "playchess.com"]
[Source "ChessBase"]
[SourceQuality "1"]
[TimeControl "40/5400+30:1800+30"]

1. e4 {[%emt 0:00:01]} c5 {[%emt 0:00:03]} 2. Nc3 {[%emt 0:00:02]} Nc6 {[%emt 0:00:04]} 3. Bb5 {[%emt 0:00:04]} e6 {[%emt 0:00:22]} 4. Bxc6 {[%emt 0:00:45]} bxc6 {[%emt 0:00:06]} 5. d3 {[%emt 0:00:19]} Nf6 {[%emt 0:00:38]} 6. f4 {[%emt 0:01:44]} Qc7 {[%emt 0:01:40]} 7. Nf3 {[%emt 0:00:53]} d5 {[%emt 0:01:48]} 8. O-O {[%emt 0:01:33]} Be7 {[%emt 0:00:28]} 9. Qe2 {[%emt 0:02:39]} O-O {[%emt 0:00:48]} 10. b3 {[%emt 0:01:26]} Ba6 {[%emt 0:03:16]} 11. e5 {[%emt 0:01:16]} Nd7 {[%emt 0:00:23]} 12. Na4 {[%emt 0:17:20]} Nb6 {[%emt 0:02:07]} 13. Nxb6 {[%emt 0:01:03]} axb6 {[%emt 0:00:43]} 14. c4 {[%emt 0:00:15]} b5 {[%emt 0:01:04]} 15. Nd2 {[%emt 0:01:52]} Rae8 {[%emt 0:02:16]} 16. Bb2 {[%emt 0:01:41]} f6 {[%emt 0:06:34]} 17. Qg4 {[%emt 0:07:46]} Qd7 {[%emt 0:03:37]} 18. Rad1 {[%emt 0:03:07]} Kh8 {[%emt 0:09:18]} 19. Rfe1 {[%emt 0:01:39]} f5 {[%emt 0:00:57]} 20. Qe2 {[%emt 0:02:27]} g5 {[%emt 0:01:37]} 21. fxg5 {[%emt 0:04:38]} Bxg5 {[%emt 0:00:14]} 22. Nf3 {[%emt 0:00:05]} Bd8 {[%emt 0:03:11]} 23. Qe3 {[%emt 0:02:35]} d4 {[%emt 0:05:07]} 24. Qh6 {[%emt 0:05:17]} Rg8 {[%emt 0:00:42]} 25. Bc1 {[%emt 0:05:19]} Rg6 {[%emt 0:00:34]} 26. Qh5 {[%emt 0:02:20]} Reg8 {[%emt 0:00:50]} 27. Re2 {[%emt 0:00:38]} Qg7 {[%emt 0:03:47]} 28. Ne1 {[%emt 0:01:20]} Bc8 {[%emt 0:01:16]} 29. Qf3 {[%emt 0:02:02]} Bh4 {[%emt 0:08:23]} 30. Bf4 {[%emt 0:07:23]} Bd7 {[%emt 0:02:08]} 31. g3 {[%emt 0:01:58]} Be8 {[%emt 0:01:12]} 32. Rg2 {[%emt 0:02:16]} Bd8 {[%emt 0:00:30]} 33. Rdd2 {[%emt 0:02:04]} Rg4 {[%emt 0:07:07]} 34. Qf2 {[%emt 0:03:54]} Bg5 {[%emt 0:08:11]} 35. Bxg5 {[%emt 0:06:30]} Qxg5 {[%emt 0:00:57]} 36. Nf3 {[%emt 0:00:07]} Qh6 {[%emt 0:00:48]} 37. Rc2 {[%emt 0:01:42]} b4 {[%emt 0:02:53]} 38. Qf1 {[%emt 0:01:59]} f4 {[%emt 0:03:30]} 39. Qe1 {[%emt 0:06:12]} Qh3 {[%emt 0:01:12]} 40. Kf1 {[%emt 0:00:00]} fxg3 {[%emt 0:00:00]} 41. hxg3 {[%emt 0:08:24]} Rxg3 {[%emt 0:02:21]} 42. Ng1 {[%emt 0:03:30]} Rf8+ {[%emt 0:04:16]} 1-0

[Event "Polish Youth G16 Championship 2023"]
[Site "Jastrzebia Gora"]
[Date "2023.03.17"]
[Round "7.22"]
[White "Ekner, Maria"]
[Black "Idzior, Izabela"]
[Result "1-0"]
[ECO "D37"]
[WhiteElo "1337"]
[BlackElo "1287"]
[Annotator "NA RC COMBH"]
[PlyCount "49"]
[EventDate "2023.03.11"]
[EventType "swiss"]
[EventCountry "POL"]
[SourceTitle "playchess.com"]
[Source "ChessBase"]
[SourceQuality "1"]
[TimeControl "40/5400+30:1800+30"]

1. d4 {[%emt 0:00:01]} d5 {[%emt 0:02:05]} 2. c4 {[%emt 0:00:10]} e6 {[%emt 0:00:04]} 3. Nc3 {[%emt 0:00:17]} Nf6 {[%emt 0:00:04]} 4. Nf3 {[%emt 0:00:40]} Be7 {[%emt 0:00:34]} 5. Bf4 {[%emt 0:01:21]} O-O {[%emt 0:01:42]} 6. e3 {[%emt 0:00:32]} c6 {[%emt 0:00:49]} 7. Bd3 {[%emt 0:01:12]} b6 {[%emt 0:01:21]} 8. O-O {[%emt 0:01:16]} Bb7 {[%emt 0:01:45]} 9. Qc2 {[%emt 0:02:12]} dxc4 {[%emt 0:06:17]} 10. Bxc4 {[%emt 0:02:49]} c5 {[%emt 0:00:28]} 11. Ne5 {[%emt 0:01:20]} Nh5 {[%emt 0:02:53]} 12. dxc5 {[%emt 0:03:24]} Bxc5 {[%emt 0:01:44]} 13. Rad1 {[%emt 0:02:00]} Qh4 {[%emt 0:03:20]} 14. Ne2 {[%emt 0:04:27]} Nxf4 {[%emt 0:12:00]} 15. exf4 {[%emt 0:02:47]} Nc6 {[%emt 0:04:40]} 16. Nd7 {[%emt 0:04:36]} Nb4 {[%emt 0:00:51]} 17. Qc3 {[%emt 0:02:25]} Rfc8 {[%emt 0:11:14]} 18. Nxc5 {[%emt 0:01:39]} bxc5 {[%emt 0:00:59]} 19. Bxe6 {[%emt 0:02:11]} Qe7 {[%emt 0:01:42]} 20. Bxc8 {[%emt 0:00:28]} Rxc8 {[%emt 0:00:43]} 21. Rfe1 {[%emt 0:01:48]} Nd5 {[%emt 0:01:56]} 22. Qg3 {[%emt 0:02:46]} Qf6 {[%emt 0:01:17]} 23. Qb3 {[%emt 0:04:50]} Bc6 {[%emt 0:01:01]} 24. Qc4 {[%emt 0:01:43]} Rd8 {[%emt 0:03:18]} 25. Qxc5 {[%emt 0:01:04]} 1-0

[Event "Polish Youth G16 Championship 2023"]
[Site "Jastrzebia Gora"]
[Date "2023.03.17"]
[Round "7.23"]
[White "Racis, Dominika"]
[Black "Danek, Wiktoria"]
[Result "1-0"]
[ECO "D30"]
[WhiteElo "1201"]
[BlackElo "1161"]
[Annotator "NA RC COMBH"]
[PlyCount "79"]
[EventDate "2023.03.11"]
[EventType "swiss"]
[EventCountry "POL"]
[SourceTitle "playchess.com"]
[Source "ChessBase"]
[SourceQuality "1"]
[TimeControl "40/5400+30:1800+30"]

1. d4 d5 2. c4 e6 3. cxd5 exd5 4. Nf3 Nf6 5. Bg5 Be7 6. e3 c6 7. h3 Bf5 8. Bd3 Bxd3 9. Qxd3 Nbd7 10. Nc3 O-O 11. O-O Re8 12. Rab1 Qc7 13. Rfc1 Nb6 14. Bf4 Qd8 15. Ne5 Nbd7 16. b4 Nxe5 17. Bxe5 Bd6 18. Bxd6 Qxd6 19. b5 Rab8 20. bxc6 bxc6 21. Rxb8 Rxb8 22. Qa6 Qd7 23. Na4 Rc8 24. Nc5 Qc7 25. Rb1 Rb8 26. Rxb8+ Qxb8 27. Nb7 Qc7 28. Qxa7 h6 29. a4 Nd7 30. a5 Qb8 31. Qxb8+ Nxb8 32. Nc5 Kf8 33. a6 Nxa6 34. Nxa6 Ke7 35. Kf1 g5 36. Ke2 f5 37. g4 fxg4 38. hxg4 Ke6 39. f4 gxf4 40. exf4 1-0

[Event "Polish Youth G16 Championship 2023"]
[Site "Jastrzebia Gora"]
[Date "2023.03.18"]
[Round "8.1"]
[White "Smietanska, Wiktoria"]
[Black "Szczotka, Klara"]
[Result "1/2-1/2"]
[ECO "E16"]
[WhiteElo "1954"]
[BlackElo "1739"]
[Annotator "TA"]
[PlyCount "80"]
[EventDate "2023.03.11"]
[EventType "swiss"]
[EventCountry "POL"]
[SourceTitle "playchess.com"]
[Source "ChessBase"]
[SourceQuality "1"]
[TimeControl "40/5400+30:1800+30"]

{[%evp 17,80,10,17,0,17,-10,-8,-31,-10,-13,0,-18,-7,-59,-22,-24,-25,-14,19,19,21,17,20,0,34,16,11,-23,-25,-120,-116,-111,-19,-13,0,0,0,0,10,0,0,9,0,0,4,4,4,4,4,4,4,0,0,0,10,9,25,17,45,15,44,0,0,0,0]} 1. Nf3 {[%emt 0:00:03]} Nf6 {[%emt 0:00:06]} 2. c4 {[%emt 0:00:06]} e6 {[%emt 0:00:08]} 3. g3 {[%emt 0:00:05]} b6 {[%emt 0:01:51]} 4. Bg2 {[%emt 0:00:10]} Bb7 {[%emt 0:00:17]} 5. d4 {[%emt 0:00:17]} Bb4+ {[%emt 0:02:45]} 6. Nbd2 {[%emt 0:06:39]} O-O {[%emt 0:04:03]} 7. a3 {[%emt 0:01:34]} Be7 {[%emt 0:03:44]} 8. O-O {[%emt 0:02:11]} d5 {[%emt 0:03:22]} 9. cxd5 {[%emt 0:03:05]} exd5 {[%emt 0:01:11]} 10. Ne5 {[%emt 0:07:10] E16: Queen's Indian: 4 g3 Bb7 5 Bg2 Bb4+.} Nbd7 {[%emt 0:04:27]} 11. Ndf3 {[%emt 0:03:24]} c5 {[%emt 0:03:54]} 12. Qa4 {[%emt 0:05:51]} Nxe5 {[%emt 0:16:12]} 13. Nxe5 {[%emt 0:00:19]} Qe8 {[%emt 0:00:28]} 14. Qd1 {[%emt 0:19:05]} Bd6 {[%emt 0:07:10] [#]} 15. Nd3 $146 {[%emt 0:05:42]} ({White should play} 15. Bf4 $11) ({Predecessor:} 15. Nf3 c4 16. Bf4 Bxf4 17. gxf4 Ne4 18. Nd2 Nd6 19. Re1 b5 20. e3 Qe6 21. Kh1 {0-1 Shahin,W (2150)-Huschenbeth,N (2596) Bayern-chI Bank Hofmann 21st 2017 (5)}) 15... Rc8 {[%emt 0:04:51]} (15... c4 $5 {[%cal Rc4d3]} 16. Nf4 a5 $15) 16. dxc5 {[%emt 0:05:06]} bxc5 {[%emt 0:00:32]} 17. Bf4 {[%emt 0:00:23]} Bxf4 {[%emt 0:06:32]} 18. Nxf4 {[%emt 0:00:09]} Qe5 {[%emt 0:00:29]} 19. Rc1 {[%emt 0:05:10]} Rfd8 {[%emt 0:04:27]} (19... Qxb2 $2 20. Rb1 (20. Bxd5 Nxd5 21. Nxd5 Qe5 $15) 20... Qe5 21. Rxb7 $18) 20. Qa4 {[%emt 0:03:14]} a6 {[%emt 0:04:40]} ({Don't do} 20... Qxb2 21. Rb1 Bc6 22. Qxa7 $14 (22. Qxc6 $2 Qxb1 23. Rxb1 Rxc6 $19)) 21. Nd3 {[%emt 0:07:08]} Qd6 {[%emt 0:06:46]} 22. Qa5 {[%emt 0:01:02][%cal Rd3c5]} c4 {[%emt 0:02:18]} 23. Nb4 {[%emt 0:01:26]} (23. Ne1 $11 {remains equal.}) 23... Rc5 $17 {[%emt 0:01:31][%cal Bc8c5,Bc5e5,Be5e2][%mdl 32]} 24. Qa4 {[%emt 0:00:38] [#]} a5 {[%emt 0:01:10]} (24... Qb6 $1 $17 {...a5 would be deadly.} 25. Nc2 Bc6) 25. Na2 $1 $11 {[%emt 0:01:14]} Bc6 {[%emt 0:01:41]} 26. Qc2 {[%emt 0:00:59]} d4 {[%emt 0:03:35] Threatens to win with ...Bxg2.} 27. b4 {[%emt 0:02:44]} axb4 {[%emt 0:00:18]} 28. axb4 {[%emt 0:00:29]} Re5 {[%emt 0:02:08] And now ...Bxg2 would win.} 29. Bxc6 {[%emt 0:06:57]} Qxc6 {[%emt 0:00:01]} 30. Qxc4 {[%emt 0:05:19]} Qxc4 {[%emt 0:02:03][%mdl 64] [#] Remove Defender} 31. Rxc4 {[%emt 0:00:05] Black should prevent Nc1.} Rxe2 {[%emt 0:00:05]} 32. Nc1 {[%emt 0:00:08]} Rd2 {[%emt 0:01:52]} 33. Nb3 {[%emt 0:00:47]} Rd3 {[%emt 0:01:34]} 34. Nc5 {[%emt 0:00:25]} Rc3 {[%emt 0:01:17]} 35. Rc1 {[%emt 0:04:09]} Rxc4 {[%emt 0:05:09]} 36. Rxc4 {[%emt 0:00:06]} g6 {[%emt 0:01:54]} 37. Nd3 {[%emt 0:00:35]} Kf8 {[%emt 0:00:57]} 38. Kg2 {[%emt 0:00:53]} Rd5 {[%emt 0:01:25]} 39. b5 {[%emt 0:01:09][%mdl 64] Deflection} Rxb5 {[%emt 0:00:19]} 40. Rxd4 {[%emt 0:00:00]} Rd5 {[%emt 0:00:00] Weighted Error Value: White=0.17 (very precise) /Black=0.14 (very precise)} 1/2-1/2

[Event "Polish Youth G16 Championship 2023"]
[Site "Jastrzebia Gora"]
[Date "2023.03.18"]
[Round "8.2"]
[White "Seemann, Pola"]
[Black "Bar, Klaudia"]
[Result "1-0"]
[ECO "C10"]
[WhiteElo "1714"]
[BlackElo "1731"]
[Annotator "NA RC COMBH"]
[PlyCount "79"]
[EventDate "2023.03.11"]
[EventType "swiss"]
[EventCountry "POL"]
[SourceTitle "playchess.com"]
[Source "ChessBase"]
[SourceQuality "1"]
[TimeControl "40/5400+30:1800+30"]

1. e4 {[%emt 0:00:03]} e6 {[%emt 0:00:13]} 2. d4 {[%emt 0:00:04]} d5 {[%emt 0:00:05]} 3. Nd2 {[%emt 0:00:49]} dxe4 {[%emt 0:00:08]} 4. Nxe4 {[%emt 0:00:06]} Bd7 {[%emt 0:00:49]} 5. Nf3 {[%emt 0:01:17]} Bc6 {[%emt 0:00:14]} 6. Ng3 {[%emt 0:01:10]} Nf6 {[%emt 0:00:52]} 7. Ne5 {[%emt 0:03:47]} Bd6 {[%emt 0:01:35]} 8. Nxc6 {[%emt 0:00:29]} Nxc6 {[%emt 0:00:07]} 9. c3 {[%emt 0:01:04]} O-O {[%emt 0:02:20]} 10. Be2 {[%emt 0:03:21]} Ne7 {[%emt 0:06:03]} 11. Bf3 {[%emt 0:05:20]} Rb8 {[%emt 0:05:41]} 12. Bg5 {[%emt 0:05:40]} Ned5 {[%emt 0:07:43]} 13. O-O {[%emt 0:13:10]} Bf4 {[%emt 0:06:53]} 14. Bxf4 {[%emt 0:02:01]} Nxf4 {[%emt 0:00:06]} 15. Qd2 {[%emt 0:01:28]} Ng6 {[%emt 0:01:17]} 16. Qc2 {[%emt 0:03:56]} Qd7 {[%emt 0:04:27]} 17. Rad1 {[%emt 0:01:52]} c6 {[%emt 0:00:30]} 18. Rfe1 {[%emt 0:01:10]} Rbd8 {[%emt 0:08:40]} 19. Ne4 {[%emt 0:03:37]} Nxe4 {[%emt 0:09:26]} 20. Qxe4 {[%emt 0:00:22]} Qc7 {[%emt 0:01:12]} 21. g3 {[%emt 0:02:13]} Rfe8 {[%emt 0:03:24]} 22. Bg2 {[%emt 0:08:42]} Kf8 {[%emt 0:03:50]} 23. h4 {[%emt 0:03:04]} Qa5 {[%emt 0:05:35]} 24. b4 {[%emt 0:05:00]} Qxa2 {[%emt 0:08:37]} 25. h5 {[%emt 0:06:27]} f5 {[%emt 0:01:05]} 26. Qd3 {[%emt 0:00:13]} e5 {[%emt 0:19:27]} 27. Qxf5+ {[%emt 0:06:28]} Kg8 {[%emt 0:00:07]} 28. hxg6 {[%emt 0:00:11]} Rf8 {[%emt 0:00:51]} 29. Ra1 {[%emt 0:01:01]} Rxf5 {[%emt 0:01:47]} 30. gxh7+ {[%emt 0:00:11]} Kh8 {[%emt 0:00:32]} 31. Rxa2 {[%emt 0:00:04]} exd4 {[%emt 0:00:16]} 32. cxd4 {[%emt 0:00:04]} Rb5 {[%emt 0:01:26]} 33. Rxa7 {[%emt 0:01:59]} Rxb4 {[%emt 0:00:09]} 34. Re7 {[%emt 0:00:30]} Rbxd4 {[%emt 0:01:06]} 35. Raxb7 {[%emt 0:00:17]} Rg4 {[%emt 0:00:10]} 36. Be4 {[%emt 0:00:40]} c5 {[%emt 0:01:11]} 37. Rbc7 {[%emt 0:00:11]} Rg5 {[%emt 0:00:22]} 38. Rc6 {[%emt 0:00:50]} Rb8 {[%emt 0:00:40]} 39. Rce6 {[%emt 0:00:17]} g6 {[%emt 0:00:31]} 40. Bxg6 {[%emt 0:00:00]} 1-0

[Event "Polish Youth G16 Championship 2023"]
[Site "Jastrzebia Gora"]
[Date "2023.03.18"]
[Round "8.3"]
[White "Tokarz, Izabela"]
[Black "Pawicka, Magdalena"]
[Result "1-0"]
[ECO "A57"]
[WhiteElo "1725"]
[BlackElo "1805"]
[Annotator "NA RC COMBH"]
[PlyCount "115"]
[EventDate "2023.03.11"]
[EventType "swiss"]
[EventCountry "POL"]
[SourceTitle "playchess.com"]
[Source "ChessBase"]
[SourceQuality "1"]
[TimeControl "40/5400+30:1800+30"]

1. d4 {[%emt 0:00:07]} Nf6 {[%emt 0:00:54]} 2. c4 {[%emt 0:00:03]} c5 {[%emt 0:00:30]} 3. d5 {[%emt 0:00:03]} b5 {[%emt 0:00:08]} 4. cxb5 {[%emt 0:00:04]} a6 {[%emt 0:00:10]} 5. e3 {[%emt 0:00:03]} g6 {[%emt 0:13:14]} 6. Nc3 {[%emt 0:00:05]} Bg7 {[%emt 0:01:44]} 7. a4 {[%emt 0:03:06]} O-O {[%emt 0:07:10]} 8. Nf3 {[%emt 0:01:39]} d6 {[%emt 0:02:45]} 9. Ra3 {[%emt 0:00:38]} axb5 {[%emt 0:03:55]} 10. Bxb5 {[%emt 0:00:48]} Na6 {[%emt 0:06:27]} 11. e4 {[%emt 0:02:23]} Nc7 {[%emt 0:08:11]} 12. Bc4 {[%emt 0:06:21]} Ba6 {[%emt 0:01:24]} 13. Bxa6 {[%emt 0:00:11]} Rxa6 {[%emt 0:04:38]} 14. O-O {[%emt 0:01:15]} Qa8 {[%emt 0:05:11]} 15. Qc2 {[%emt 0:11:14]} Rb8 {[%emt 0:01:28]} 16. h3 {[%emt 0:10:56]} Nd7 {[%emt 0:04:05]} 17. Nd2 {[%emt 0:03:13]} Rb4 {[%emt 0:02:49]} 18. b3 {[%emt 0:12:58]} e6 {[%emt 0:10:54]} 19. dxe6 {[%emt 0:01:48]} fxe6 {[%emt 0:01:25]} 20. Bb2 {[%emt 0:04:04]} Ne5 {[%emt 0:01:53]} 21. Ne2 {[%emt 0:04:01]} Rc6 {[%emt 0:08:35]} 22. f4 {[%emt 0:02:40]} Nd7 {[%emt 0:00:30]} 23. Bxg7 {[%emt 0:01:12]} Kxg7 {[%emt 0:00:04]} 24. f5 {[%emt 0:02:17]} Ne5 {[%emt 0:01:39]} 25. Nc4 {[%emt 0:06:54]} Nxc4 {[%emt 0:03:03]} 26. bxc4 {[%emt 0:00:05]} Ra6 {[%emt 0:01:16]} 27. Qc3+ {[%emt 0:03:21]} e5 {[%emt 0:00:35]} 28. fxg6 {[%emt 0:02:54]} hxg6 {[%emt 0:03:03]} 29. Qf3 {[%emt 0:00:29]} Qe8 {[%emt 0:00:34]} 30. Qf6+ {[%emt 0:00:11]} Kg8 {[%emt 0:00:06]} 31. Raf3 {[%emt 0:02:09]} Rb8 {[%emt 0:01:41]} 32. Qh4 {[%emt 0:02:10]} Rxa4 {[%emt 0:01:34]} 33. Rf7 {[%emt 0:02:37]} Qxf7 {[%emt 0:00:30]} 34. Rxf7 {[%emt 0:00:02]} Kxf7 {[%emt 0:00:05]} 35. Qh7+ {[%emt 0:00:04]} Ke6 {[%emt 0:00:16]} 36. Qxc7 {[%emt 0:00:45]} Rb1+ {[%emt 0:00:18]} 37. Kh2 {[%emt 0:00:27]} Rxc4 {[%emt 0:00:16]} 38. Qc8+ {[%emt 0:00:10]} Ke7 {[%emt 0:00:36]} 39. Qc7+ {[%emt 0:03:05]} Ke6 {[%emt 0:00:19]} 40. Qc6 {[%emt 0:00:00]} Rc2 {[%emt 0:00:00]} 41. Qe8+ {[%emt 0:01:35]} Kf6 {[%emt 0:01:17]} 42. Qh8+ {[%emt 0:07:43]} Ke6 {[%emt 0:08:04]} 43. Qg8+ {[%emt 0:01:21]} Kf6 {[%emt 0:00:22]} 44. Qf8+ {[%emt 0:00:03]} Ke6 {[%emt 0:00:25]} 45. Qf3 {[%emt 0:00:43]} Rbb2 {[%emt 0:00:35]} 46. Nc3 {[%emt 0:00:46]} c4 $18 {[%emt 0:02:34]} 47. Qg4+ {[%emt 0:02:16]} Kf7 {[%emt 0:00:18]} 48. Nd5 {[%emt 0:02:56]} ({Less strong is} 48. Qd7+ Kg8 $14) 48... c3 {[%emt 0:01:51]} 49. Qd7+ {[%emt 0:00:27]} Kg8 {[%emt 0:00:04]} 50. Qd8+ {[%emt 0:03:34]} Kg7 {[%emt 0:00:37]} 51. Qf6+ {[%emt 0:00:24]} Kh7 {[%emt 0:00:21]} 52. Qf7+ {[%emt 0:00:23]} Kh6 {[%emt 0:00:15]} 53. Qf8+ {[%emt 0:00:14]} Kh5 {[%emt 0:02:15]} 54. Qh8+ {[%emt 0:00:21]} Kg5 {[%emt 0:00:06]} 55. h4+ {[%emt 0:00:32]} Kg4 {[%emt 0:00:10]} 56. Nf6+ {[%emt 0:00:50]} Kf4 {[%emt 0:00:49]} 57. Qh6+ {[%emt 0:00:03]} g5 {[%emt 0:00:00]} 58. Qxg5# {[%emt 0:00:04]} 1-0

[Event "Polish Youth G16 Championship 2023"]
[Site "Jastrzebia Gora"]
[Date "2023.03.18"]
[Round "8.4"]
[White "Ziobrowska, Maja"]
[Black "Kawa, Anna"]
[Result "0-1"]
[ECO "B33"]
[WhiteElo "1758"]
[BlackElo "1743"]
[Annotator "NA RC COMBH"]
[PlyCount "118"]
[EventDate "2023.03.11"]
[EventType "swiss"]
[EventCountry "POL"]
[SourceTitle "playchess.com"]
[Source "ChessBase"]
[SourceQuality "1"]
[TimeControl "40/5400+30:1800+30"]

1. e4 {[%emt 0:00:04]} c5 {[%emt 0:00:18]} 2. Nf3 {[%emt 0:00:06]} Nc6 {[%emt 0:00:15]} 3. d4 {[%emt 0:01:01]} cxd4 {[%emt 0:00:18]} 4. Nxd4 {[%emt 0:00:04]} Nf6 {[%emt 0:00:30]} 5. Nc3 {[%emt 0:00:04]} e5 {[%emt 0:00:29]} 6. Ndb5 {[%emt 0:04:01]} d6 {[%emt 0:00:22]} 7. Bg5 {[%emt 0:01:06]} a6 {[%emt 0:00:50]} 8. Na3 {[%emt 0:00:04]} b5 {[%emt 0:00:20]} 9. Nd5 {[%emt 0:00:28]} Be7 {[%emt 0:00:37]} 10. Nxe7 {[%emt 0:01:31]} Nxe7 {[%emt 0:01:28]} 11. Bxf6 gxf6 {[%emt 0:00:11]} 12. Qd2 {[%emt 0:16:25]} Be6 {[%emt 0:16:26]} 13. c4 {[%emt 0:06:58]} bxc4 {[%emt 0:09:31]} 14. Bxc4 {[%emt 0:02:05]} d5 {[%emt 0:13:43]} 15. exd5 {[%emt 0:01:33]} Bxd5 {[%emt 0:00:59]} 16. Bxd5 {[%emt 0:02:27]} Qxd5 {[%emt 0:00:35]} 17. Qxd5 {[%emt 0:02:09]} Nxd5 {[%emt 0:00:03]} 18. g3 {[%emt 0:02:42]} Nb4 {[%emt 0:02:26]} 19. Ke2 {[%emt 0:02:29]} Ke7 {[%emt 0:03:13]} 20. Rhc1 {[%emt 0:06:08]} Rac8 {[%emt 0:01:02]} 21. Rc4 {[%emt 0:02:13]} Rxc4 {[%emt 0:04:39]} 22. Nxc4 {[%emt 0:00:05]} Rc8 {[%emt 0:00:27]} 23. b3 {[%emt 0:01:55]} Ke6 {[%emt 0:02:14]} 24. f4 {[%emt 0:03:11]} Rc5 {[%emt 0:10:54]} 25. a4 {[%emt 0:12:17]} exf4 {[%emt 0:05:22]} 26. gxf4 {[%emt 0:00:10]} Rh5 {[%emt 0:00:44]} 27. Rh1 {[%emt 0:03:21]} Rh3 {[%emt 0:01:11]} 28. Ne3 {[%emt 0:02:39]} h5 {[%emt 0:07:19]} 29. Kd2 {[%emt 0:03:22]} Nd5 {[%emt 0:03:27]} 30. Nc2 {[%emt 0:07:47]} Kd6 {[%emt 0:03:22]} 31. b4 {[%emt 0:02:31]} Nxf4 {[%emt 0:03:53]} 32. a5 {[%emt 0:02:24]} Nd5 {[%emt 0:00:59]} 33. b5 {[%emt 0:03:40]} axb5 {[%emt 0:01:18]} 34. a6 {[%emt 0:00:23]} Kc7 {[%emt 0:01:39]} 35. Nd4 {[%emt 0:01:37]} Kb6 {[%emt 0:03:02]} 36. a7 {[%emt 0:00:54]} Kxa7 {[%emt 0:00:09]} 37. Nxb5+ {[%emt 0:00:04]} Kb6 {[%emt 0:00:28]} 38. Nd6 {[%emt 0:00:42]} Kc5 {[%emt 0:02:11]} 39. Nxf7 {[%emt 0:02:13]} Kd4 {[%emt 0:02:10]} 40. Nh6 {[%emt 0:00:00]} Ne3 {[%emt 0:00:00]} 41. Ke2 {[%emt 0:04:02]} Ke4 {[%emt 0:01:58]} 42. Kf2 {[%emt 0:02:31]} Kf4 {[%emt 0:03:32]} 43. Ng8 {[%emt 0:01:47]} Ng4+ {[%emt 0:04:35]} 44. Kg2 {[%emt 0:00:22]} Rf3 {[%emt 0:00:52]} 45. Rc1 {[%emt 0:03:25]} Rd3 {[%emt 0:06:28]} 46. Rf1+ {[%emt 0:01:44]} Kg5 {[%emt 0:00:12]} 47. Kg1 {[%emt 0:07:03]} Re3 {[%emt 0:01:53]} 48. Rb1 {[%emt 0:13:38]} Re8 {[%emt 0:01:34]} 49. h3 {[%emt 0:00:32]} Rxg8 {[%emt 0:00:45]} 50. hxg4 {[%emt 0:00:30]} hxg4 51. Kg2 {[%emt 0:00:00]} Ra8 {[%emt 0:01:00]} 52. Rb3 {[%emt 0:00:00]} Ra2+ {[%emt 0:00:23]} 53. Kg3 {[%emt 0:00:08]} f5 {[%emt 0:01:19]} 54. Rb5 {[%emt 0:00:30]} Ra3+ {[%emt 0:00:11]} 55. Kg2 {[%emt 0:00:06]} Rf3 {[%emt 0:04:21]} 56. Rb8 {[%emt 0:01:10]} Re3 {[%emt 0:00:41]} 57. Kf2 {[%emt 0:00:29]} Kf4 {[%emt 0:00:46]} 58. Rb4+ {[%emt 0:00:23]} Re4 {[%emt 0:00:06]} 59. Rb3 {[%emt 0:00:04]} g3+ {[%emt 0:01:20]} 0-1